{"text_format":"1","workbook":"xlsx","n_sheets":1,"sheets":["Лист2"],"not_rendered":{"charts":0,"images":0,"macros":1,"external_links":0,"defined_names":3,"comments":0,"pivot_tables":0},"unopened":[],"bounds":{"document_bytes":16777216,"sheet_cells":100000,"rows_first":2000,"rows_last":500,"rows_between":2000,"halvings":0,"cell_chars":16384,"cell_head_chars":4096},"cells_cut":0,"cells_raw":0,"read":"whole","date_system":"1900"}

{"sheet":"Лист2","index":0,"n_rows":19,"n_cols":13,"rows_kept":19,"cut":false,"hidden":false,"merged":[]}
["Начало","конец","n","k","Наименование","Характеристика_1","Характеристика_2","Характеристика_bnju","От","До","Итог"]
["2015-11-28T11:05:00","2015-11-28T16:13:00",{"$f":"MOD(База5[[#This Row],[Начало]],1)","v":"11:05:00"},{"$f":"MOD(База5[[#This Row],[конец]],1)","v":"16:13:00"},{"$f":"IF(База5[[#This Row],[Начало]]=\"\",\"\",\"Название 1\")","v":"Название 1"},65,5,{"$f":"IF(База5[[#This Row],[Наименование]]<>OFFSET(База5[[#This Row],[Наименование]],-1,),\"1 проверка\",\nIF(INT(База5[[#This Row],[Начало]])-INT(OFFSET(База5[[#This Row],[конец]],-1,))>1,\"Время\",\nIF(OR(\n(База5[[#This Row],[Характеристика_2]]-OFFSET(База5[[#This Row],[Характеристика_2]],-1,))*10+OFFSET(База5[[#This Row],[Характеристика_1]],-1,)-OFFSET(База5[[#This Row],[Характеристика_2]],-1,)=База5[[#This Row],[Характеристика_1]],\n(База5[[#This Row],[Характеристика_2]]-OFFSET(База5[[#This Row],[Характеристика_2]],-1,))*10+OFFSET(База5[[#This Row],[Характеристика_1]],-1,)-База5[[#This Row],[Характеристика_2]]=База5[[#This Row],[Характеристика_1]]),\n\"Поменялось\",\n\"Нет\")))","v":"1 проверка"},"16:13:00","11:05:00",{"$f":"IF(База5[[#This Row],[От]]>База5[[#This Row],[До]],База5[[#This Row],[До]]+1-База5[[#This Row],[От]],База5[[#This Row],[До]]-База5[[#This Row],[От]])","v":"18:52:00"}]
["2015-11-28T16:23:00","2015-11-28T16:23:00",{"$f":"MOD(База5[[#This Row],[Начало]],1)","v":"16:23:00"},{"$f":"MOD(База5[[#This Row],[конец]],1)","v":"16:23:00"},{"$f":"IF(База5[[#This Row],[Начало]]=\"\",\"\",\"Название 1\")","v":"Название 1"},65,5,{"$f":"IF(База5[[#This Row],[Наименование]]<>OFFSET(База5[[#This Row],[Наименование]],-1,),\"1 проверка\",\nIF(INT(База5[[#This Row],[Начало]])-INT(OFFSET(База5[[#This Row],[конец]],-1,))>1,\"Время\",\nIF(OR(\n(База5[[#This Row],[Характеристика_2]]-OFFSET(База5[[#This Row],[Характеристика_2]],-1,))*10+OFFSET(База5[[#This Row],[Характеристика_1]],-1,)-OFFSET(База5[[#This Row],[Характеристика_2]],-1,)=База5[[#This Row],[Характеристика_1]],\n(База5[[#This Row],[Характеристика_2]]-OFFSET(База5[[#This Row],[Характеристика_2]],-1,))*10+OFFSET(База5[[#This Row],[Характеристика_1]],-1,)-База5[[#This Row],[Характеристика_2]]=База5[[#This Row],[Характеристика_1]]),\n\"Поменялось\",\n\"Нет\")))","v":"Нет"},"16:13:00","11:05:00",{"$f":"IF(База5[[#This Row],[От]]>База5[[#This Row],[До]],База5[[#This Row],[До]]+1-База5[[#This Row],[От]],База5[[#This Row],[До]]-База5[[#This Row],[От]])","v":"18:52:00"},null,"Название 1 = 18/30"]
["2015-11-28T19:31:00","2015-11-29T18:30:00",{"$f":"MOD(База5[[#This Row],[Начало]],1)","v":"19:31:00"},{"$f":"MOD(База5[[#This Row],[конец]],1)","v":"18:30:00"},{"$f":"IF(База5[[#This Row],[Начало]]=\"\",\"\",\"Название 1\")","v":"Название 1"},60,5,{"$f":"IF(База5[[#This Row],[Наименование]]<>OFFSET(База5[[#This Row],[Наименование]],-1,),\"1 проверка\",\nIF(INT(База5[[#This Row],[Начало]])-INT(OFFSET(База5[[#This Row],[конец]],-1,))>1,\"Время\",\nIF(OR(\n(База5[[#This Row],[Характеристика_2]]-OFFSET(База5[[#This Row],[Характеристика_2]],-1,))*10+OFFSET(База5[[#This Row],[Характеристика_1]],-1,)-OFFSET(База5[[#This Row],[Характеристика_2]],-1,)=База5[[#This Row],[Характеристика_1]],\n(База5[[#This Row],[Характеристика_2]]-OFFSET(База5[[#This Row],[Характеристика_2]],-1,))*10+OFFSET(База5[[#This Row],[Характеристика_1]],-1,)-База5[[#This Row],[Характеристика_2]]=База5[[#This Row],[Характеристика_1]]),\n\"Поменялось\",\n\"Нет\")))","v":"Поменялось"},"16:23:00","19:31:00",{"$f":"IF(База5[[#This Row],[От]]>База5[[#This Row],[До]],База5[[#This Row],[До]]+1-База5[[#This Row],[От]],База5[[#This Row],[До]]-База5[[#This Row],[От]])","v":"03:08:00"}]
["2015-11-29T18:35:53","2015-11-29T19:34:58",{"$f":"MOD(База5[[#This Row],[Начало]],1)","v":"18:35:53"},{"$f":"MOD(База5[[#This Row],[конец]],1)","v":"19:34:58"},{"$f":"IF(База5[[#This Row],[Начало]]=\"\",\"\",\"Название 1\")","v":"Название 1"},55,5,{"$f":"IF(База5[[#This Row],[Наименование]]<>OFFSET(База5[[#This Row],[Наименование]],-1,),\"1 проверка\",\nIF(INT(База5[[#This Row],[Начало]])-INT(OFFSET(База5[[#This Row],[конец]],-1,))>1,\"Время\",\nIF(OR(\n(База5[[#This Row],[Характеристика_2]]-OFFSET(База5[[#This Row],[Характеристика_2]],-1,))*10+OFFSET(База5[[#This Row],[Характеристика_1]],-1,)-OFFSET(База5[[#This Row],[Характеристика_2]],-1,)=База5[[#This Row],[Характеристика_1]],\n(База5[[#This Row],[Характеристика_2]]-OFFSET(База5[[#This Row],[Характеристика_2]],-1,))*10+OFFSET(База5[[#This Row],[Характеристика_1]],-1,)-База5[[#This Row],[Характеристика_2]]=База5[[#This Row],[Характеристика_1]]),\n\"Поменялось\",\n\"Нет\")))","v":"Поменялось"},"18:30:00","18:35:53",{"$f":"IF(База5[[#This Row],[От]]>База5[[#This Row],[До]],База5[[#This Row],[До]]+1-База5[[#This Row],[От]],База5[[#This Row],[До]]-База5[[#This Row],[От]])","v":"00:05:53"}]
["2015-12-01T22:48:00","2015-12-02T18:22:00",{"$f":"MOD(База5[[#This Row],[Начало]],1)","v":"22:48:00"},{"$f":"MOD(База5[[#This Row],[конец]],1)","v":"18:22:00"},{"$f":"IF(База5[[#This Row],[Начало]]=\"\",\"\",\"Название 1\")","v":"Название 1"},45,5,{"$f":"IF(База5[[#This Row],[Наименование]]<>OFFSET(База5[[#This Row],[Наименование]],-1,),\"1 проверка\",\nIF(INT(База5[[#This Row],[Начало]])-INT(OFFSET(База5[[#This Row],[конец]],-1,))>1,\"Время\",\nIF(OR(\n(База5[[#This Row],[Характеристика_2]]-OFFSET(База5[[#This Row],[Характеристика_2]],-1,))*10+OFFSET(База5[[#This Row],[Характеристика_1]],-1,)-OFFSET(База5[[#This Row],[Характеристика_2]],-1,)=База5[[#This Row],[Характеристика_1]],\n(База5[[#This Row],[Характеристика_2]]-OFFSET(База5[[#This Row],[Характеристика_2]],-1,))*10+OFFSET(База5[[#This Row],[Характеристика_1]],-1,)-База5[[#This Row],[Характеристика_2]]=База5[[#This Row],[Характеристика_1]]),\n\"Поменялось\",\n\"Нет\")))","v":"Время"},"18:30:00","18:35:53",{"$f":"IF(База5[[#This Row],[От]]>База5[[#This Row],[До]],База5[[#This Row],[До]]+1-База5[[#This Row],[От]],База5[[#This Row],[До]]-База5[[#This Row],[От]])","v":"00:05:53"}]
["2015-12-02T18:42:00","2015-12-02T18:42:00",{"$f":"MOD(База5[[#This Row],[Начало]],1)","v":"18:42:00"},{"$f":"MOD(База5[[#This Row],[конец]],1)","v":"18:42:00"},{"$f":"IF(База5[[#This Row],[Начало]]=\"\",\"\",\"Название 1\")","v":"Название 1"},40,5,{"$f":"IF(База5[[#This Row],[Наименование]]<>OFFSET(База5[[#This Row],[Наименование]],-1,),\"1 проверка\",\nIF(INT(База5[[#This Row],[Начало]])-INT(OFFSET(База5[[#This Row],[конец]],-1,))>1,\"Время\",\nIF(OR(\n(База5[[#This Row],[Характеристика_2]]-OFFSET(База5[[#This Row],[Характеристика_2]],-1,))*10+OFFSET(База5[[#This Row],[Характеристика_1]],-1,)-OFFSET(База5[[#This Row],[Характеристика_2]],-1,)=База5[[#This Row],[Характеристика_1]],\n(База5[[#This Row],[Характеристика_2]]-OFFSET(База5[[#This Row],[Характеристика_2]],-1,))*10+OFFSET(База5[[#This Row],[Характеристика_1]],-1,)-База5[[#This Row],[Характеристика_2]]=База5[[#This Row],[Характеристика_1]]),\n\"Поменялось\",\n\"Нет\")))","v":"Поменялось"},"18:30:00","18:35:53",{"$f":"IF(База5[[#This Row],[От]]>База5[[#This Row],[До]],База5[[#This Row],[До]]+1-База5[[#This Row],[От]],База5[[#This Row],[До]]-База5[[#This Row],[От]])","v":"00:05:53"}]
["2015-12-03T19:20:00","2015-12-03T19:20:00",{"$f":"MOD(База5[[#This Row],[Начало]],1)","v":"19:20:00"},{"$f":"MOD(База5[[#This Row],[конец]],1)","v":"19:20:00"},{"$f":"IF(База5[[#This Row],[Начало]]=\"\",\"\",\"Название 1\")","v":"Название 1"},45,6,{"$f":"IF(База5[[#This Row],[Наименование]]<>OFFSET(База5[[#This Row],[Наименование]],-1,),\"1 проверка\",\nIF(INT(База5[[#This Row],[Начало]])-INT(OFFSET(База5[[#This Row],[конец]],-1,))>1,\"Время\",\nIF(OR(\n(База5[[#This Row],[Характеристика_2]]-OFFSET(База5[[#This Row],[Характеристика_2]],-1,))*10+OFFSET(База5[[#This Row],[Характеристика_1]],-1,)-OFFSET(База5[[#This Row],[Характеристика_2]],-1,)=База5[[#This Row],[Характеристика_1]],\n(База5[[#This Row],[Характеристика_2]]-OFFSET(База5[[#This Row],[Характеристика_2]],-1,))*10+OFFSET(База5[[#This Row],[Характеристика_1]],-1,)-База5[[#This Row],[Характеристика_2]]=База5[[#This Row],[Характеристика_1]]),\n\"Поменялось\",\n\"Нет\")))","v":"Поменялось"},"18:30:00","18:35:53",{"$f":"IF(База5[[#This Row],[От]]>База5[[#This Row],[До]],База5[[#This Row],[До]]+1-База5[[#This Row],[От]],База5[[#This Row],[До]]-База5[[#This Row],[От]])","v":"00:05:53"}]
["2015-12-04T20:36:00","2015-12-04T22:31:00",{"$f":"MOD(База5[[#This Row],[Начало]],1)","v":"20:36:00"},{"$f":"MOD(База5[[#This Row],[конец]],1)","v":"22:31:00"},{"$f":"IF(База5[[#This Row],[Начало]]=\"\",\"\",\"Название 1\")","v":"Название 1"},39,6,{"$f":"IF(База5[[#This Row],[Наименование]]<>OFFSET(База5[[#This Row],[Наименование]],-1,),\"1 проверка\",\nIF(INT(База5[[#This Row],[Начало]])-INT(OFFSET(База5[[#This Row],[конец]],-1,))>1,\"Время\",\nIF(OR(\n(База5[[#This Row],[Характеристика_2]]-OFFSET(База5[[#This Row],[Характеристика_2]],-1,))*10+OFFSET(База5[[#This Row],[Характеристика_1]],-1,)-OFFSET(База5[[#This Row],[Характеристика_2]],-1,)=База5[[#This Row],[Характеристика_1]],\n(База5[[#This Row],[Характеристика_2]]-OFFSET(База5[[#This Row],[Характеристика_2]],-1,))*10+OFFSET(База5[[#This Row],[Характеристика_1]],-1,)-База5[[#This Row],[Характеристика_2]]=База5[[#This Row],[Характеристика_1]]),\n\"Поменялось\",\n\"Нет\")))","v":"Поменялось"},"18:30:00","18:35:53",{"$f":"IF(База5[[#This Row],[От]]>База5[[#This Row],[До]],База5[[#This Row],[До]]+1-База5[[#This Row],[От]],База5[[#This Row],[До]]-База5[[#This Row],[От]])","v":"00:05:53"}]
["2015-12-06T10:29:00","2015-12-06T13:17:00",{"$f":"MOD(База5[[#This Row],[Начало]],1)","v":"10:29:00"},{"$f":"MOD(База5[[#This Row],[конец]],1)","v":"13:17:00"},{"$f":"IF(База5[[#This Row],[Начало]]=\"\",\"\",\"Название 1\")","v":"Название 1"},43,7,{"$f":"IF(База5[[#This Row],[Наименование]]<>OFFSET(База5[[#This Row],[Наименование]],-1,),\"1 проверка\",\nIF(INT(База5[[#This Row],[Начало]])-INT(OFFSET(База5[[#This Row],[конец]],-1,))>1,\"Время\",\nIF(OR(\n(База5[[#This Row],[Характеристика_2]]-OFFSET(База5[[#This Row],[Характеристика_2]],-1,))*10+OFFSET(База5[[#This Row],[Характеристика_1]],-1,)-OFFSET(База5[[#This Row],[Характеристика_2]],-1,)=База5[[#This Row],[Характеристика_1]],\n(База5[[#This Row],[Характеристика_2]]-OFFSET(База5[[#This Row],[Характеристика_2]],-1,))*10+OFFSET(База5[[#This Row],[Характеристика_1]],-1,)-База5[[#This Row],[Характеристика_2]]=База5[[#This Row],[Характеристика_1]]),\n\"Поменялось\",\n\"Нет\")))","v":"Время"},"18:30:00","18:35:53",{"$f":"IF(База5[[#This Row],[От]]>База5[[#This Row],[До]],База5[[#This Row],[До]]+1-База5[[#This Row],[От]],База5[[#This Row],[До]]-База5[[#This Row],[От]])","v":"00:05:53"}]
["2015-12-09T00:19:57","2015-12-09T07:01:31",{"$f":"MOD(База5[[#This Row],[Начало]],1)","v":"00:19:57"},{"$f":"MOD(База5[[#This Row],[конец]],1)","v":"07:01:31"},{"$f":"IF(База5[[#This Row],[Начало]]=\"\",\"\",\"Название 1\")","v":"Название 1"},49,10,{"$f":"IF(База5[[#This Row],[Наименование]]<>OFFSET(База5[[#This Row],[Наименование]],-1,),\"1 проверка\",\nIF(INT(База5[[#This Row],[Начало]])-INT(OFFSET(База5[[#This Row],[конец]],-1,))>1,\"Время\",\nIF(OR(\n(База5[[#This Row],[Характеристика_2]]-OFFSET(База5[[#This Row],[Характеристика_2]],-1,))*10+OFFSET(База5[[#This Row],[Характеристика_1]],-1,)-OFFSET(База5[[#This Row],[Характеристика_2]],-1,)=База5[[#This Row],[Характеристика_1]],\n(База5[[#This Row],[Характеристика_2]]-OFFSET(База5[[#This Row],[Характеристика_2]],-1,))*10+OFFSET(База5[[#This Row],[Характеристика_1]],-1,)-База5[[#This Row],[Характеристика_2]]=База5[[#This Row],[Характеристика_1]]),\n\"Поменялось\",\n\"Нет\")))","v":"Время"},"18:30:00","18:35:53",{"$f":"IF(База5[[#This Row],[От]]>База5[[#This Row],[До]],База5[[#This Row],[До]]+1-База5[[#This Row],[От]],База5[[#This Row],[До]]-База5[[#This Row],[От]])","v":"00:05:53"}]
["2015-12-10T12:43:00","2015-12-10T12:43:00",{"$f":"MOD(База5[[#This Row],[Начало]],1)","v":"12:43:00"},{"$f":"MOD(База5[[#This Row],[конец]],1)","v":"12:43:00"},{"$f":"IF(База5[[#This Row],[Начало]]=\"\",\"\",\"Название 1\")","v":"Название 1"},49,11,{"$f":"IF(База5[[#This Row],[Наименование]]<>OFFSET(База5[[#This Row],[Наименование]],-1,),\"1 проверка\",\nIF(INT(База5[[#This Row],[Начало]])-INT(OFFSET(База5[[#This Row],[конец]],-1,))>1,\"Время\",\nIF(OR(\n(База5[[#This Row],[Характеристика_2]]-OFFSET(База5[[#This Row],[Характеристика_2]],-1,))*10+OFFSET(База5[[#This Row],[Характеристика_1]],-1,)-OFFSET(База5[[#This Row],[Характеристика_2]],-1,)=База5[[#This Row],[Характеристика_1]],\n(База5[[#This Row],[Характеристика_2]]-OFFSET(База5[[#This Row],[Характеристика_2]],-1,))*10+OFFSET(База5[[#This Row],[Характеристика_1]],-1,)-База5[[#This Row],[Характеристика_2]]=База5[[#This Row],[Характеристика_1]]),\n\"Поменялось\",\n\"Нет\")))","v":"Поменялось"},"18:30:00","18:35:53",{"$f":"IF(База5[[#This Row],[От]]>База5[[#This Row],[До]],База5[[#This Row],[До]]+1-База5[[#This Row],[От]],База5[[#This Row],[До]]-База5[[#This Row],[От]])","v":"00:05:53"}]
["2015-12-11T18:29:00","2015-12-11T18:29:00",{"$f":"MOD(База5[[#This Row],[Начало]],1)","v":"18:29:00"},{"$f":"MOD(База5[[#This Row],[конец]],1)","v":"18:29:00"},{"$f":"IF(База5[[#This Row],[Начало]]=\"\",\"\",\"Название 1\")","v":"Название 1"},38,11,{"$f":"IF(База5[[#This Row],[Наименование]]<>OFFSET(База5[[#This Row],[Наименование]],-1,),\"1 проверка\",\nIF(INT(База5[[#This Row],[Начало]])-INT(OFFSET(База5[[#This Row],[конец]],-1,))>1,\"Время\",\nIF(OR(\n(База5[[#This Row],[Характеристика_2]]-OFFSET(База5[[#This Row],[Характеристика_2]],-1,))*10+OFFSET(База5[[#This Row],[Характеристика_1]],-1,)-OFFSET(База5[[#This Row],[Характеристика_2]],-1,)=База5[[#This Row],[Характеристика_1]],\n(База5[[#This Row],[Характеристика_2]]-OFFSET(База5[[#This Row],[Характеристика_2]],-1,))*10+OFFSET(База5[[#This Row],[Характеристика_1]],-1,)-База5[[#This Row],[Характеристика_2]]=База5[[#This Row],[Характеристика_1]]),\n\"Поменялось\",\n\"Нет\")))","v":"Поменялось"},"18:30:00","18:35:53",{"$f":"IF(База5[[#This Row],[От]]>База5[[#This Row],[До]],База5[[#This Row],[До]]+1-База5[[#This Row],[От]],База5[[#This Row],[До]]-База5[[#This Row],[От]])","v":"00:05:53"}]
["2015-12-11T18:31:00","2015-12-11T18:31:00",{"$f":"MOD(База5[[#This Row],[Начало]],1)","v":"18:31:00"},{"$f":"MOD(База5[[#This Row],[конец]],1)","v":"18:31:00"},{"$f":"IF(База5[[#This Row],[Начало]]=\"\",\"\",\"Название 1\")","v":"Название 1"},37,12,{"$f":"IF(База5[[#This Row],[Наименование]]<>OFFSET(База5[[#This Row],[Наименование]],-1,),\"1 проверка\",\nIF(INT(База5[[#This Row],[Начало]])-INT(OFFSET(База5[[#This Row],[конец]],-1,))>1,\"Время\",\nIF(OR(\n(База5[[#This Row],[Характеристика_2]]-OFFSET(База5[[#This Row],[Характеристика_2]],-1,))*10+OFFSET(База5[[#This Row],[Характеристика_1]],-1,)-OFFSET(База5[[#This Row],[Характеристика_2]],-1,)=База5[[#This Row],[Характеристика_1]],\n(База5[[#This Row],[Характеристика_2]]-OFFSET(База5[[#This Row],[Характеристика_2]],-1,))*10+OFFSET(База5[[#This Row],[Характеристика_1]],-1,)-База5[[#This Row],[Характеристика_2]]=База5[[#This Row],[Характеристика_1]]),\n\"Поменялось\",\n\"Нет\")))","v":"Поменялось"},"18:29:00","18:31:00",{"$f":"IF(База5[[#This Row],[От]]>База5[[#This Row],[До]],База5[[#This Row],[До]]+1-База5[[#This Row],[От]],База5[[#This Row],[До]]-База5[[#This Row],[От]])","v":"00:02:00"}]
["2015-12-12T10:31:00","2015-12-12T10:31:00",{"$f":"MOD(База5[[#This Row],[Начало]],1)","v":"10:31:00"},{"$f":"MOD(База5[[#This Row],[конец]],1)","v":"10:31:00"},{"$f":"IF(База5[[#This Row],[Начало]]=\"\",\"\",\"Название 1\")","v":"Название 1"},37,12,{"$f":"IF(База5[[#This Row],[Наименование]]<>OFFSET(База5[[#This Row],[Наименование]],-1,),\"1 проверка\",\nIF(INT(База5[[#This Row],[Начало]])-INT(OFFSET(База5[[#This Row],[конец]],-1,))>1,\"Время\",\nIF(OR(\n(База5[[#This Row],[Характеристика_2]]-OFFSET(База5[[#This Row],[Характеристика_2]],-1,))*10+OFFSET(База5[[#This Row],[Характеристика_1]],-1,)-OFFSET(База5[[#This Row],[Характеристика_2]],-1,)=База5[[#This Row],[Характеристика_1]],\n(База5[[#This Row],[Характеристика_2]]-OFFSET(База5[[#This Row],[Характеристика_2]],-1,))*10+OFFSET(База5[[#This Row],[Характеристика_1]],-1,)-База5[[#This Row],[Характеристика_2]]=База5[[#This Row],[Характеристика_1]]),\n\"Поменялось\",\n\"Нет\")))","v":"Нет"},"18:29:00","18:31:00",{"$f":"IF(База5[[#This Row],[От]]>База5[[#This Row],[До]],База5[[#This Row],[До]]+1-База5[[#This Row],[От]],База5[[#This Row],[До]]-База5[[#This Row],[От]])","v":"00:02:00"}]
["2015-12-13T10:31:00","2015-12-13T10:31:00",{"$f":"MOD(База5[[#This Row],[Начало]],1)","v":"10:31:00"},{"$f":"MOD(База5[[#This Row],[конец]],1)","v":"10:31:00"},{"$f":"IF(База5[[#This Row],[Начало]]=\"\",\"\",\"Название 1\")","v":"Название 1"},34,13,{"$f":"IF(База5[[#This Row],[Наименование]]<>OFFSET(База5[[#This Row],[Наименование]],-1,),\"1 проверка\",\nIF(INT(База5[[#This Row],[Начало]])-INT(OFFSET(База5[[#This Row],[конец]],-1,))>1,\"Время\",\nIF(OR(\n(База5[[#This Row],[Характеристика_2]]-OFFSET(База5[[#This Row],[Характеристика_2]],-1,))*10+OFFSET(База5[[#This Row],[Характеристика_1]],-1,)-OFFSET(База5[[#This Row],[Характеристика_2]],-1,)=База5[[#This Row],[Характеристика_1]],\n(База5[[#This Row],[Характеристика_2]]-OFFSET(База5[[#This Row],[Характеристика_2]],-1,))*10+OFFSET(База5[[#This Row],[Характеристика_1]],-1,)-База5[[#This Row],[Характеристика_2]]=База5[[#This Row],[Характеристика_1]]),\n\"Поменялось\",\n\"Нет\")))","v":"Поменялось"},"10:31:00","10:31:00",{"$f":"IF(База5[[#This Row],[От]]>База5[[#This Row],[До]],База5[[#This Row],[До]]+1-База5[[#This Row],[От]],База5[[#This Row],[До]]-База5[[#This Row],[От]])","v":"00:00:00"}]
[null,null,{"$f":"MOD(База5[[#This Row],[Начало]],1)","v":"00:00:00"},{"$f":"MOD(База5[[#This Row],[конец]],1)","v":"00:00:00"},{"$f":"IF(База5[[#This Row],[Начало]]=\"\",\"\",\"Название 1\")","v":""},null,null,{"$f":"IF(База5[[#This Row],[Наименование]]<>OFFSET(База5[[#This Row],[Наименование]],-1,),\"1 проверка\",\nIF(INT(База5[[#This Row],[Начало]])-INT(OFFSET(База5[[#This Row],[конец]],-1,))>1,\"Время\",\nIF(OR(\n(База5[[#This Row],[Характеристика_2]]-OFFSET(База5[[#This Row],[Характеристика_2]],-1,))*10+OFFSET(База5[[#This Row],[Характеристика_1]],-1,)-OFFSET(База5[[#This Row],[Характеристика_2]],-1,)=База5[[#This Row],[Характеристика_1]],\n(База5[[#This Row],[Характеристика_2]]-OFFSET(База5[[#This Row],[Характеристика_2]],-1,))*10+OFFSET(База5[[#This Row],[Характеристика_1]],-1,)-База5[[#This Row],[Характеристика_2]]=База5[[#This Row],[Характеристика_1]]),\n\"Поменялось\",\n\"Нет\")))","v":"1 проверка"},"00:00:00","00:00:00",{"$f":"IF(База5[[#This Row],[От]]>База5[[#This Row],[До]],База5[[#This Row],[До]]+1-База5[[#This Row],[От]],База5[[#This Row],[До]]-База5[[#This Row],[От]])","v":"00:00:00"}]
[null,null,{"$f":"MOD(База5[[#This Row],[Начало]],1)","v":"00:00:00"},{"$f":"MOD(База5[[#This Row],[конец]],1)","v":"00:00:00"},{"$f":"IF(База5[[#This Row],[Начало]]=\"\",\"\",\"Название 1\")","v":""},null,null,{"$f":"IF(База5[[#This Row],[Наименование]]<>OFFSET(База5[[#This Row],[Наименование]],-1,),\"1 проверка\",\nIF(INT(База5[[#This Row],[Начало]])-INT(OFFSET(База5[[#This Row],[конец]],-1,))>1,\"Время\",\nIF(OR(\n(База5[[#This Row],[Характеристика_2]]-OFFSET(База5[[#This Row],[Характеристика_2]],-1,))*10+OFFSET(База5[[#This Row],[Характеристика_1]],-1,)-OFFSET(База5[[#This Row],[Характеристика_2]],-1,)=База5[[#This Row],[Характеристика_1]],\n(База5[[#This Row],[Характеристика_2]]-OFFSET(База5[[#This Row],[Характеристика_2]],-1,))*10+OFFSET(База5[[#This Row],[Характеристика_1]],-1,)-База5[[#This Row],[Характеристика_2]]=База5[[#This Row],[Характеристика_1]]),\n\"Поменялось\",\n\"Нет\")))","v":"Поменялось"},"00:00:00","00:00:00",{"$f":"IF(База5[[#This Row],[От]]>База5[[#This Row],[До]],База5[[#This Row],[До]]+1-База5[[#This Row],[От]],База5[[#This Row],[До]]-База5[[#This Row],[От]])","v":"00:00:00"}]
[null,null,{"$f":"MOD(База5[[#This Row],[Начало]],1)","v":"00:00:00"},{"$f":"MOD(База5[[#This Row],[конец]],1)","v":"00:00:00"},{"$f":"IF(База5[[#This Row],[Начало]]=\"\",\"\",\"Название 1\")","v":""},null,null,{"$f":"IF(База5[[#This Row],[Наименование]]<>OFFSET(База5[[#This Row],[Наименование]],-1,),\"1 проверка\",\nIF(INT(База5[[#This Row],[Начало]])-INT(OFFSET(База5[[#This Row],[конец]],-1,))>1,\"Время\",\nIF(OR(\n(База5[[#This Row],[Характеристика_2]]-OFFSET(База5[[#This Row],[Характеристика_2]],-1,))*10+OFFSET(База5[[#This Row],[Характеристика_1]],-1,)-OFFSET(База5[[#This Row],[Характеристика_2]],-1,)=База5[[#This Row],[Характеристика_1]],\n(База5[[#This Row],[Характеристика_2]]-OFFSET(База5[[#This Row],[Характеристика_2]],-1,))*10+OFFSET(База5[[#This Row],[Характеристика_1]],-1,)-База5[[#This Row],[Характеристика_2]]=База5[[#This Row],[Характеристика_1]]),\n\"Поменялось\",\n\"Нет\")))","v":"Поменялось"},"00:00:00","00:00:00",{"$f":"IF(База5[[#This Row],[От]]>База5[[#This Row],[До]],База5[[#This Row],[До]]+1-База5[[#This Row],[От]],База5[[#This Row],[До]]-База5[[#This Row],[От]])","v":"00:00:00"}]